Workbook

Sheet 重大项目清单
A1: 附件1
A2: “一老一小”重大项目储备清单（按年度滚动更新）
A3: 序号 | B3: 项目名称 | C3: 项目类型 | D3: 建设期限 | E3: 建设地点 | F3: 建设内容和规模 | G3: 总投资 （万元） | H3: 申请中央预算内投资 （万元） | I3: 地方配套资金 （万元） | J3: 企业自筹资金 （万元） | K3: 组织实施单位 | L3: 备注
B4: 合计（36个） | G4: =SUM(G5+G31) -> 70794 | H4: =SUM(H5+H31) -> 45085 | I4: =SUM(I5+I31) -> 24284 | J4: =SUM(J36) -> 1425
A5: 一 | B5: 养老领域项目（22个） | G5: =SUM(G6+G16+G25) -> 61164 | H5: =SUM(H6+H16+H25) -> 39450 | I5: =SUM(I6+I16+I25) -> 21714
A6: （一） | B6: 公办养老服务机构建设项目（9个） | G6: =SUM(G7:G15) -> 51998 | H6: =SUM(H7:H15) -> 33055 | I6: =SUM(I7:I15) -> 18943
A7: 1 | B7: 正镶白旗区域性敬老院（示范）建设项目 | C7: 公办养老服务机构建设项目 | D7: 2020-2022 | E7: 正镶白旗 | F7: 建筑面积9881.65平方米，新增床位220张。 | G7: 3666 | H7: 1670 | I7: =G7-H7 -> 1996 | K7: 正镶白旗民政局 | L7: 已开工，下达2022年中央预算内投资1670万元。
A8: 2 | B8: 内蒙古自治区锡林郭勒盟苏尼特右旗公办养老服务机构建设项目 | C8: 公办养老服务机构建设项目 | D8: 2022-2024 | E8: 苏尼特右旗 | F8: 新建总建筑面积18000平方米，建设床位400张。 | G8: 6000 | H8: 4800 | I8: 1200 | K8: 苏尼特右旗民政局 | L8: 已批复可研
A9: 3 | B9: 太仆寺旗公办养老院护理能力改造提升项目 | C9: 公办养老服务机构建设项目 | D9: 2022-2023 | E9: 太仆寺旗 | F9: 改扩建面积5000平米，新增床位110张 | G9: 1332 | H9: 1065 | I9: =G9-H9 -> 267 | K9: 太仆寺旗民政局 | L9: 已编制完成初步 设计
A10: 4 | B10: 西乌旗巴彦乌拉康养园区建设项目 | C10: 公办养老服务机构建设项目 | D10: 2022-2025 | E10: 西乌珠穆沁旗 | F10: 建筑面积60400平方米，新增床位920张。 | G10: 12000 | H10: 6000 | I10: 6000 | K10: 西乌珠穆沁旗民政局 | L10: 正在编制可研
A11: 5 | B11: 苏尼特左旗牧区养老二期项目 | C11: 公办养老服务机构建设项目 | D11: 2022-2023 | E11: 苏尼特左旗 | F11: 建筑面积20000平方米，新增床位500张。 | G11: 7500 | H11: 4800 | I11: 2700 | K11: 苏尼特左旗民政局 | L11: 谋划阶段
A12: 6 | B12: 太仆寺旗养老院 | C12: 公办养老服务机构建设项目 | D12: 2022-2023 | E12: 太仆寺旗 | F12: 新建面积6600平方米，新增床位300张 | G12: 3000 | H12: 1200 | I12: 1800 | K12: 太仆寺旗民政局 | L12: 谋划阶段
A13: 7 | B13: 苏尼特右旗牧区养老二期项目 | C13: 公办养老服务机构建设项目 | D13: 2023-2023 | E13: 苏尼特右旗 | F13: 建筑面积25906.41平方米 | G13: 5000 | H13: 4000 | I13: 1000 | K13: 苏尼特右旗民政局 | L13: 谋划阶段
A14: 8 | B14: 镶黄旗综合养老院项目 | C14: 公办养老服务机构建设项目 | D14: 2022-2025 | E14: 镶黄旗 | F14: 占地面积18000平方米，新增床位450张 | G14: 8000 | H14: 6400 | I14: 1600 | K14: 镶黄旗民政局 | L14: 谋划阶段
A15: 9 | B15: 阿巴嘎旗养老院项目 | C15: 公办养老服务机构建设项目 | D15: 2023-2025 | E15: 阿巴嘎旗 | F15: 建筑面积15000平方米，新增床位260张 | G15: 5500 | H15: 3120 | I15: 2380 | K15: 阿巴嘎旗民政局 | L15: 谋划阶段
A16: （二） | B16: 公办养老服务机构提升 改造项目（8个） | G16: =SUM(G17:G24) -> 5766 | H16: =SUM(H17:H24) -> 3727 | I16: =SUM(I17:I24) -> 2039
A17: 10 | B17: 锡盟社会福利院提升改造项目 | C17: 公办养老服务机构提升改造项目 | D17: 2021-2022 | E17: 锡林浩特市 | F17: 建筑面积13400平方米，内设床位383张 | G17: 4000 | H17: 2400 | I17: =G17-H17 -> 1600 | K17: 锡林郭勒盟民政局 | L17: 已办理招投标
A18: 11 | B18: 阿巴嘎旗社会福利院提升改造项目 | C18: 公办养老服务机构提升改造项目 | D18: 2022-2023 | E18: 阿巴嘎旗 | F18: 建筑面积3600平方米，设置床位120张 | G18: 421 | H18: 336 | I18: 85 | K18: 阿巴嘎旗民政局 | L18: 正在开展前期工作
A19: 12 | B19: 苏尼特左旗社会福利院（养老服务中心）改造提升工程 | C19: 公办养老服务机构提升改造项目 | D19: 2022-2023 | E19: 苏尼特左旗 | F19: 建筑面积2100平方米，新增床位50张。 | G19: 800 | H19: 600 | I19: =G19-H19 -> 200 | K19: 苏尼特左旗民政局 | L19: 谋划阶段
A20: 13 | B20: 西乌珠穆沁旗百思乐养老园区综合服务楼维修项目 | C20: 公办养老服务机构提升改造项目 | D20: 2022-2023 | E20: 西乌珠穆沁旗 | F20: 建筑面积3000平方米，内设床位510张 | G20: 25 | H20: 15 | I20: 10 | K20: 西乌珠穆沁旗民政局 | L20: 谋划阶段
A21: 14 | B21: 苏尼特右旗中心敬老院消防安全改造提升项目 | C21: 公办养老服务机构提升改造项目 | D21: 2022-2022 | E21: 苏尼特右旗 | F21: 安装消防水池，改造面积100平方米 | G21: 50 | H21: 40 | I21: 10 | K21: 苏尼特右旗民政局 | L21: 谋划阶段
A22: 15 | B22: 正镶白旗中心敬老院消防安全改造提升项目 | C22: 公办养老服务机构提升改造项目 | D22: 2022-2023 | E22: 正镶白旗 | F22: 消防改造3000平方米。 | G22: 120 | H22: 96 | I22: 24 | K22: 正镶白旗民政局 | L22: 谋划阶段
A23: 16 | B23: 苏尼特右旗吉日嘎郎综合养老园区消防安全改造提升项目 | C23: 公办养老服务机构提升改造项目 | D23: 2022-2022 | E23: 苏尼特右旗 | F23: 提升改造消防压力水管，改造面积120平方米 | G23: 50 | H23: 40 | I23: 10 | K23: 苏尼特右旗民政局 | L23: 谋划阶段
A24: 17 | B24: 西乌珠穆沁旗恩克门德养护院维修和消防改造提升项目 | C24: 公办养老服务机构提升改造项目 | D24: 2022-2023 | E24: 西乌珠穆沁旗 | F24: 建筑面积7000平方米，内设床位180张 | G24: 300 | H24: 200 | I24: 100 | K24: 西乌珠穆沁旗民政局 | L24: 谋划阶段
A25: （三） | B25: 居家社区养老服务设施 建设项目（5个） | G25: =SUM(G26:G30) -> 3400 | H25: =SUM(H26:H30) -> 2668 | I25: =SUM(I26:I30) -> 732
A26: 18 | B26: 太仆寺旗宝丰社区居 家养老服务中心 | C26: 居家社区养老服务设施建设项目 | D26: 2022-2023 | E26: 太仆寺旗 | F26: 改扩建1200平方米，设置床位100张 | G26: 450 | H26: 360 | I26: =G26-H26 -> 90 | K26: 太仆寺旗民政局 | L26: 谋划阶段
A27: 19 | B27: 正镶白旗公办养老机构明安图镇社区居家养老服务中心 | C27: 居家社区养老服务设施建设项目 | D27: 2022-2023 | E27: 正镶白旗 | F27: 建筑面积1000平米，新增床位30张 | G27: 450 | H27: 288 | I27: =G27-H27 -> 162 | K27: 正镶白旗民政局 | L27: 谋划阶段
A28: 20 | B28: 苏尼特右旗社区居家养老服务网络建设项目 | C28: 居家社区养老服务设施建设项目 | D28: 2022-2024 | E28: 苏尼特右旗 | F28: 改建面积1800平方米，改建床位60张。 | G28: 300 | H28: 260 | I28: =G28-H28 -> 40 | K28: 苏尼特右旗民政局 | L28: 谋划阶段
A29: 21 | B29: 阿巴嘎旗智能养老建设项目 | C29: 居家社区养老服务设施建设项目 | D29: 2022-2024 | E29: 阿巴嘎旗 | F29: 建设机构养老服务平台、社区养老服务平台、居家养老服务平台，提高智慧管理水平。 | G29: 1000 | H29: 800 | I29: =G29-H29 -> 200 | K29: 阿巴嘎旗民政局 | L29: 谋划阶段
A30: 22 | B30: 阿巴嘎旗社区养老服务设施建设项目 | C30: 居家社区养老服务设施建设项目 | D30: 2022-2024 | E30: 阿巴嘎旗 | F30: 建筑面积4000平方米，新增床位100张。 | G30: 1200 | H30: 960 | I30: =G30-H30 -> 240 | K30: 阿巴嘎旗民政局 | L30: 谋划阶段
A31: 二 | B31: 托育领域项目（14个） | G31: =SUM(G32+G36) -> 9630 | H31: =SUM(H32+H36) -> 5635 | I31: =SUM(I32) -> 2570 | J31: =SUM(J36) -> 1425
A32: （一） | B32: 公办托育服务能力 建设项目（3个） | G32: =SUM(G33:G35) -> 6850 | H32: =SUM(H33:H35) -> 4280 | I32: =SUM(I33:I35) -> 2570
A33: 1 | B33: 正镶白旗公办托育服务能力建设项目 | C33: 公办托育服务能力建设项目 | D33: 2022-2023 | E33: 正镶白旗 | F33: 建筑面积7000平方米，新增托位150个。 | G33: 2450 | H33: 1960 | I33: =G33-H33 -> 490 | K33: 正镶白旗卫生健康委员会 | L33: 谋划阶段
A34: 2 | B34: 东乌旗托育中心项目 | C34: 公办托育服务能力建设项目 | D34: 2022-2024 | E34: 东乌珠穆沁旗 | F34: 建筑面积5000平方米，新增托位65个 | G34: 4000 | H34: 2000 | I34: 2000 | K34: 东乌旗卫生健康委员会 | L34: 谋划阶段
A35: 3 | B35: 镶黄旗托育中心项目 | C35: 公办托育服务能力建设项目 | D35: 2023-2025 | E35: 镶黄旗 | F35: 建筑面积800平方米，新增托位90个。 | G35: 400 | H35: 320 | I35: =G35-H35 -> 80 | K35: 镶黄旗卫生健康委员会 | L35: 谋划阶段
A36: （二） | B36: 普惠托育服务专项行动 （11个） | G36: =SUM(G37:G47) -> 2780 | H36: =SUM(H37:H47) -> 1355 | J36: =SUM(J37:J47) -> 1425
A37: 4 | B37: 锡林浩特市兰慧托育服务有限公司托育服务设施改建项目 | C37: 普惠托育服务专项行动 | D37: 2022-2023 | E37: 锡林浩特市 | F37: 建筑面积4900平方米，新增托位290个。 | G37: 600 | H37: 290 | J37: =G37-H37 -> 310 | K37: 锡林浩特市卫健委 | L37: 前期工作已全部办理完成
A38: 5 | B38: 内蒙古自治区锡林郭勒盟东乌珠穆沁旗童星博思托育服务中心改建项目 | C38: 普惠托育服务专项行动 | D38: 2023-2024 | E38: 东乌珠穆沁旗 | F38: 改建建筑面积1000平方米。其中业务用房600平方米，新增托位160个。 | G38: 200 | H38: 160 | J38: 40 | K38: 东乌珠穆沁旗卫健委 | L38: 前期工作已全部办理完成
A39: 6 | B39: 锡林浩特市童心托育有限公司普惠性托育改建项目 | C39: 普惠托育服务专项行动 | D39: 2022-2023 | E39: 锡林浩特市 | F39: 建筑面积1012平方米，新增托位80个。 | G39: 140 | H39: 80 | J39: 60 | K39: 锡林浩特市卫健委 | L39: 已开工
A40: 7 | B40: 锡林浩特市稚慧园托育有限公司托育服务设施改建项目 | C40: 普惠托育服务专项行动 | D40: 2022-2023 | E40: 锡林浩特市 | F40: 建筑面积907平方米，新增托位150个 | G40: 190 | H40: 150 | J40: 40 | K40: 锡林浩特市卫健委 | L40: 已开工
A41: 8 | B41: 锡林浩特市博雅公学托育服务有限公司托育服务设施改建项目 | C41: 普惠托育服务专项行动 | D41: 2022-2024 | E41: 锡林浩特市 | F41: 建筑面积1000平方米，新增托位150个。 | G41: 200 | H41: 150 | J41: 50 | K41: 锡林浩特市卫健委 | L41: 已开工
A42: 9 | B42: 锡林浩特市博幼苑托育有限公司托育服务设施改建项目 | C42: 普惠托育服务专项行动 | D42: 2022-2023 | E42: 锡林浩特市 | F42: 建筑面积为2000平米，新增托位150个。 | G42: 200 | H42: 150 | J42: 50 | K42: 锡林浩特市卫健委 | L42: 已开工
A43: 10 | B43: 锡林浩特市亿婴天使早教中心 | C43: 普惠托育服务专项行动 | D43: 2022-2023 | E43: 锡林浩特市 | F43: 建筑面积1100平方米，新增托位45个。 | G43: 70 | H43: 45 | J43: 25 | K43: 锡林浩特市卫健委 | L43: 已开工
A44: 11 | B44: 乌拉盖管理区真爱幼幼亲子教育咨询中心改建项目 | C44: 普惠托育服务专项行动 | D44: 2022-2023 | E44: 乌拉盖管理区 | F44: 建筑面积400平方米，新增托位60个。 | G44: 160 | H44: 60 | J44: =G44-H44 -> 100 | K44: 乌拉盖管理区卫健委 | L44: 已开工
A45: 12 | B45: 正镶白旗苏登宝贝托育中心建设项目 | C45: 普惠托育服务专项行动 | D45: 2023-2024 | E45: 正镶白旗 | F45: 建筑面积800平方米，新增托位90个。 | G45: 300 | H45: 90 | J45: 210 | K45: 正镶白旗卫健委 | L45: 谋划阶段
A46: 13 | B46: 阿巴嘎旗艺博托育中心建设项目 | C46: 普惠托育服务专项行动 | D46: 2023-2024 | E46: 阿巴嘎旗 | F46: 建筑面积800平方米，新增托位90个。 | G46: 360 | H46: 90 | J46: =G46-H46 -> 270 | K46: 阿巴嘎旗卫健委 | L46: 谋划阶段
A47: 14 | B47: 阿巴嘎旗得格金托育中心建设项目 | C47: 普惠托育服务专项行动 | D47: 2024-2025 | E47: 阿巴嘎旗 | F47: 建筑面积800平方米，新增托位90个。 | G47: 360 | H47: 90 | J47: =G47-H47 -> 270 | K47: 阿巴嘎旗卫健委 | L47: 谋划阶段
A48: 备注：可根据实际情况每年动态调整项目个数及内容。

Sheet Sheet2
A1: 附件2：
